[Event "*** SCC Grand Prix: Titled Tuesday Blitz"]
[Site "Chess.com"]
[Date "2020.08.04"]
[Round "1"]
[White "peixe64"]
[Black "ftorodent"]
[Result "0-1"]
[WhiteElo "2304"]
[BlackElo "2663"]
[TimeControl "180+1"]
[EndTime "13:52:05 PDT"]
[Termination "ftorodent won on time"]

1. e4 {[%clk 0:03:00.9]} 1... c5 {[%clk 0:02:57.9]} 2. Nf3 {[%clk 0:03:00.9]}
2... e6 {[%clk 0:02:57.9]} 3. d4 {[%clk 0:03:01.1]} 3... cxd4 {[%clk 0:02:58.1]}
4. Nxd4 {[%clk 0:03:02]} 4... a6 {[%clk 0:02:57.9]} 5. Bd3 {[%clk 0:02:59]} 5...
Bc5 {[%clk 0:02:56.7]} 6. Nb3 {[%clk 0:02:55.9]} 6... Be7 {[%clk 0:02:56.6]} 7.
c4 {[%clk 0:02:44.7]} 7... d6 {[%clk 0:02:55.8]} 8. Nc3 {[%clk 0:02:44.6]} 8...
Nf6 {[%clk 0:02:55.5]} 9. O-O {[%clk 0:02:44.7]} 9... O-O {[%clk 0:02:55.4]} 10.
Be3 {[%clk 0:02:39]} 10... Nbd7 {[%clk 0:02:54.5]} 11. f3 {[%clk 0:02:34.9]}
11... b6 {[%clk 0:02:54]} 12. Rc1 {[%clk 0:02:33.8]} 12... Bb7 {[%clk
0:02:53.6]} 13. Qd2 {[%clk 0:02:29.1]} 13... Rc8 {[%clk 0:02:52.5]} 14. Qf2
{[%clk 0:02:15.9]} 14... Qc7 {[%clk 0:02:47.9]} 15. Rfd1 {[%clk 0:02:07.7]}
15... Rfe8 {[%clk 0:02:39.3]} 16. Bf1 {[%clk 0:01:55.5]} 16... Nc5 {[%clk
0:02:31]} 17. Nd4 {[%clk 0:01:50.2]} 17... Qb8 {[%clk 0:02:27.2]} 18. b4 {[%clk
0:01:44.6]} 18... Ncd7 {[%clk 0:02:27.2]} 19. Nb3 {[%clk 0:01:39.2]} 19... d5
{[%clk 0:02:18]} 20. exd5 {[%clk 0:01:23.3]} 20... Bxb4 {[%clk 0:02:15.9]} 21.
dxe6 {[%clk 0:01:10.2]} 21... Rxe6 {[%clk 0:01:55.6]} 22. Nd5 {[%clk 0:00:50.1]}
22... Rce8 {[%clk 0:01:37.8]} 23. Bf4 {[%clk 0:00:42.3]} 23... Bd6 {[%clk
0:01:35.7]} 24. Nxf6+ {[%clk 0:00:39.1]} 24... Nxf6 {[%clk 0:01:12.4]} 25. Rxd6
{[%clk 0:00:35.9]} 25... Rxd6 {[%clk 0:01:12.6]} 26. Qg3 {[%clk 0:00:20.6]}
26... Red8 {[%clk 0:00:52.3]} 27. Rd1 {[%clk 0:00:17.7]} 27... Nh5 {[%clk
0:00:51.4]} 28. Bxd6 {[%clk 0:00:10.4]} 28... Nxg3 {[%clk 0:00:48.6]} 29. Bxb8
{[%clk 0:00:10.7]} 29... Rxd1 {[%clk 0:00:46.7]} 30. Bxg3 {[%clk 0:00:11]} 30...
a5 {[%clk 0:00:40.7]} 31. a4 {[%clk 0:00:08.9]} 31... Bc6 {[%clk 0:00:40.1]} 32.
Be5 {[%clk 0:00:07.1]} 32... Bxa4 {[%clk 0:00:38.1]} 33. Nd4 {[%clk 0:00:07.7]}
33... f6 {[%clk 0:00:36.4]} 34. c5 {[%clk 0:00:03.1]} 34... bxc5 {[%clk
0:00:32.6]} 35. Kf2 {[%clk 0:00:01.6]} 35... cxd4 {[%clk 0:00:30.2]} 36. Bc4+
{[%clk 0:00:02.5]} 36... Kh8 {[%clk 0:00:29.3]} 0-1

[Event "*** SCC Grand Prix: Titled Tuesday Blitz"]
[Site "Chess.com"]
[Date "2020.08.04"]
[Round "1"]
[White "Karateloru"]
[Black "MF1966Idrisov"]
[Result "0-1"]
[WhiteElo "2649"]
[BlackElo "2324"]
[TimeControl "180+1"]
[EndTime "13:52:08 PDT"]
[Termination "MF1966Idrisov won on time"]

1. Nf3 {[%clk 0:03:00.9]} 1... d5 {[%clk 0:02:59.1]} 2. g3 {[%clk 0:03:01.4]}
2... c6 {[%clk 0:02:59]} 3. Bg2 {[%clk 0:03:02.1]} 3... Nf6 {[%clk 0:02:58.7]}
4. O-O {[%clk 0:03:02.6]} 4... Bf5 {[%clk 0:02:59.2]} 5. b3 {[%clk 0:03:02.8]}
5... e6 {[%clk 0:02:59.6]} 6. Bb2 {[%clk 0:03:03.4]} 6... Be7 {[%clk 0:02:59.9]}
7. h3 {[%clk 0:03:03.6]} 7... h6 {[%clk 0:03:00.2]} 8. d3 {[%clk 0:03:04.1]}
8... O-O {[%clk 0:02:59.6]} 9. Nbd2 {[%clk 0:03:04.7]} 9... a5 {[%clk
0:02:59.7]} 10. c4 {[%clk 0:03:05.1]} 10... b5 {[%clk 0:02:57.8]} 11. cxb5
{[%clk 0:03:03.7]} 11... cxb5 {[%clk 0:02:57.7]} 12. Nd4 {[%clk 0:03:04.4]}
12... Qb6 {[%clk 0:02:51.9]} 13. Nxf5 {[%clk 0:03:04.1]} 13... exf5 {[%clk
0:02:52.1]} 14. Rc1 {[%clk 0:03:00.7]} 14... Nbd7 {[%clk 0:02:50.7]} 15. Nf3
{[%clk 0:02:57.5]} 15... Rac8 {[%clk 0:02:47.6]} 16. Qd2 {[%clk 0:02:57.4]}
16... b4 {[%clk 0:02:47.4]} 17. Nd4 {[%clk 0:02:56.8]} 17... a4 {[%clk
0:02:37.2]} 18. Nxf5 {[%clk 0:02:56.5]} 18... Bc5 {[%clk 0:02:36.6]} 19. d4
{[%clk 0:02:54.6]} 19... Bd6 {[%clk 0:02:35.9]} 20. Qd3 {[%clk 0:02:41.1]} 20...
a3 {[%clk 0:02:34]} 21. Rxc8 {[%clk 0:02:39.6]} 21... Rxc8 {[%clk 0:02:31.6]}
22. Bc1 {[%clk 0:02:39.8]} 22... Rc3 {[%clk 0:02:25.3]} 23. Qb1 {[%clk
0:02:37.5]} 23... Bf8 {[%clk 0:02:18.6]} 24. Bd2 {[%clk 0:02:36.7]} 24... Rc6
{[%clk 0:02:18.6]} 25. Rc1 {[%clk 0:02:28.4]} 25... Rxc1+ {[%clk 0:02:17.9]} 26.
Qxc1 {[%clk 0:02:28.6]} 26... g6 {[%clk 0:02:18.1]} 27. Nxh6+ {[%clk 0:02:28]}
27... Kg7 {[%clk 0:02:13.6]} 28. Be3 {[%clk 0:02:25.8]} 28... Bd6 {[%clk
0:02:08]} 29. Qc8 {[%clk 0:02:23.5]} 29... Qb5 {[%clk 0:02:02.7]} 30. Bf3 {[%clk
0:02:11]} 30... Bf8 {[%clk 0:02:01.6]} 31. Ng4 {[%clk 0:02:09.8]} 31... Nxg4
{[%clk 0:02:00]} 32. Bxg4 {[%clk 0:02:08.4]} 32... Nf6 {[%clk 0:02:00.3]} 33.
Bf3 {[%clk 0:02:05]} 33... Bd6 {[%clk 0:01:53.7]} 34. h4 {[%clk 0:01:54.1]}
34... Ne4 {[%clk 0:01:44.1]} 35. Bxe4 {[%clk 0:01:43.9]} 35... dxe4 {[%clk
0:01:43.9]} 36. Bh6+ {[%clk 0:01:28.3]} 36... Kh7 {[%clk 0:01:33.8]} 37. Bg5
{[%clk 0:01:28.5]} 37... Qxe2 {[%clk 0:01:24.7]} 38. Bf6 {[%clk 0:01:28.3]}
38... Qd1+ {[%clk 0:01:24.5]} 39. Kh2 {[%clk 0:01:27.5]} 39... Bxg3+ {[%clk
0:01:24.6]} 40. Kh3 {[%clk 0:00:53.5]} 40... Qh1+ {[%clk 0:01:18.2]} 41. Kxg3
{[%clk 0:00:53.7]} 41... Qf3+ {[%clk 0:01:16.3]} 42. Kh2 {[%clk 0:00:53.9]}
42... Qxf2+ {[%clk 0:01:14.4]} 43. Kh1 {[%clk 0:00:53.8]} 43... Qxf6 {[%clk
0:01:12.3]} 44. Qc4 {[%clk 0:00:54.3]} 44... Qf3+ {[%clk 0:01:10.8]} 45. Kg1
{[%clk 0:00:52.9]} 45... e3 {[%clk 0:01:11.1]} 46. Qf1 {[%clk 0:00:52.6]} 46...
Qg3+ {[%clk 0:01:08.7]} 47. Qg2 {[%clk 0:00:50.4]} 47... Qxh4 {[%clk 0:01:05.8]}
48. d5 {[%clk 0:00:46.7]} 48... Qe1+ {[%clk 0:01:05.3]} 49. Kh2 {[%clk
0:00:46.6]} 49... e2 {[%clk 0:01:05.7]} 50. Qh3+ {[%clk 0:00:44.3]} 50... Kg7
{[%clk 0:01:05.1]} 0-1

[Event "*** SCC Grand Prix: Titled Tuesday Blitz"]
[Site "Chess.com"]
[Date "2020.08.04"]
[Round "1"]
[White "Martins-BR"]
[Black "AldokhinIvan"]
[Result "0-1"]
[WhiteElo "2200"]
[BlackElo "2553"]
[TimeControl "180+1"]
[EndTime "13:52:09 PDT"]
[Termination "AldokhinIvan won by resignation"]

1. e4 {[%clk 0:03:00.1]} 1... c6 {[%clk 0:02:59.2]} 2. d4 {[%clk 0:02:58.9]}
2... d5 {[%clk 0:03:00.1]} 3. Nc3 {[%clk 0:02:58.9]} 3... dxe4 {[%clk
0:03:00.1]} 4. Nxe4 {[%clk 0:02:59.3]} 4... Nf6 {[%clk 0:03:01]} 5. Nxf6+ {[%clk
0:02:59]} 5... exf6 {[%clk 0:03:01.9]} 6. c3 {[%clk 0:02:58.3]} 6... Bd6 {[%clk
0:03:01.9]} 7. Bd3 {[%clk 0:02:58]} 7... O-O {[%clk 0:03:02.8]} 8. Ne2 {[%clk
0:02:57.7]} 8... Re8 {[%clk 0:03:03.2]} 9. Qc2 {[%clk 0:02:57.5]} 9... h6 {[%clk
0:02:58]} 10. Be3 {[%clk 0:02:56.7]} 10... Nd7 {[%clk 0:02:57.8]} 11. O-O-O
{[%clk 0:02:54.9]} 11... Nf8 {[%clk 0:02:38.2]} 12. h3 {[%clk 0:02:44.8]} 12...
Be6 {[%clk 0:02:32.3]} 13. Kb1 {[%clk 0:02:43.6]} 13... Bd5 {[%clk 0:02:18.5]}
14. Rhg1 {[%clk 0:02:39.4]} 14... Bh2 {[%clk 0:02:15.2]} 15. Rh1 {[%clk
0:02:38.3]} 15... Bc7 {[%clk 0:02:15.2]} 16. Rhg1 {[%clk 0:02:36.7]} 16... Qe7
{[%clk 0:02:03.3]} 17. g4 {[%clk 0:02:24.7]} 17... Be4 {[%clk 0:01:39.3]} 18.
Ng3 {[%clk 0:02:17.2]} 18... Bxg3 {[%clk 0:01:36.3]} 19. Rxg3 {[%clk 0:02:15.3]}
19... Bxd3 {[%clk 0:01:18.2]} 20. Qxd3 {[%clk 0:02:14.4]} 20... Ng6 {[%clk
0:01:18.4]} 21. Ka1 {[%clk 0:02:01.3]} 21... Qe4 {[%clk 0:01:11.3]} 22. Qd2
{[%clk 0:01:59.8]} 22... Re7 {[%clk 0:01:07.6]} 23. a3 {[%clk 0:01:53.1]} 23...
Rae8 {[%clk 0:01:07.1]} 24. Qc1 {[%clk 0:01:33.4]} 24... Re6 {[%clk 0:01:06.7]}
25. Rh1 {[%clk 0:01:30.2]} 25... Ne7 {[%clk 0:01:03.1]} 26. h4 {[%clk
0:01:26.7]} 26... Nd5 {[%clk 0:01:03]} 27. g5 {[%clk 0:01:22.8]} 27... h5 {[%clk
0:00:58.4]} 28. gxf6 {[%clk 0:01:19.8]} 28... Rxf6 {[%clk 0:00:56]} 29. Rhg1
{[%clk 0:01:18.1]} 29... g6 {[%clk 0:00:54.6]} 30. Qd1 {[%clk 0:01:15.5]} 30...
Qf5 {[%clk 0:00:51.6]} 31. Qa4 {[%clk 0:00:56.9]} 31... a6 {[%clk 0:00:45.1]}
32. Qb3 {[%clk 0:00:38.9]} 32... b5 {[%clk 0:00:44]} 33. Qd1 {[%clk 0:00:35.1]}
33... Nxe3 {[%clk 0:00:43]} 34. fxe3 {[%clk 0:00:33.3]} 34... Kf8 {[%clk
0:00:36.2]} 35. Qd2 {[%clk 0:00:31.8]} 35... Qf2 {[%clk 0:00:33.8]} 36. Qd3
{[%clk 0:00:30.6]} 36... Rf3 {[%clk 0:00:31.2]} 37. Rg5 {[%clk 0:00:16.8]} 37...
Rfxe3 {[%clk 0:00:27.3]} 0-1

[Event "*** SCC Grand Prix: Titled Tuesday Blitz"]
[Site "Chess.com"]
[Date "2020.08.04"]
[Round "1"]
[White "Lucas_Tomiello"]
[Black "Infernal_XaM"]
[Result "0-1"]
[WhiteElo "2453"]
[BlackElo "2925"]
[TimeControl "180+1"]
[EndTime "13:52:11 PDT"]
[Termination "Infernal_XaM won by resignation"]

1. e4 {[%clk 0:03:00.9]} 1... e5 {[%clk 0:02:50.1]} 2. Nf3 {[%clk 0:03:00.8]}
2... Nc6 {[%clk 0:02:50]} 3. Bb5 {[%clk 0:03:00.9]} 3... f5 {[%clk 0:02:49.7]}
4. d3 {[%clk 0:02:59.6]} 4... Nf6 {[%clk 0:02:48.9]} 5. O-O {[%clk 0:02:57.6]}
5... d6 {[%clk 0:02:48.9]} 6. Nc3 {[%clk 0:02:52.7]} 6... Be7 {[%clk 0:02:46.4]}
7. Re1 {[%clk 0:02:31.9]} 7... O-O {[%clk 0:02:44.9]} 8. Bc4+ {[%clk 0:02:13.2]}
8... Kh8 {[%clk 0:02:39.1]} 9. Ng5 {[%clk 0:02:12]} 9... Qe8 {[%clk 0:02:38.3]}
10. Ne6 {[%clk 0:02:11.2]} 10... Bxe6 {[%clk 0:02:37.9]} 11. Bxe6 {[%clk
0:02:12.1]} 11... f4 {[%clk 0:02:37]} 12. f3 {[%clk 0:02:01.3]} 12... Nd4 {[%clk
0:02:15]} 13. Bh3 {[%clk 0:01:58.3]} 13... g5 {[%clk 0:02:14.6]} 14. Ne2 {[%clk
0:01:53.1]} 14... g4 {[%clk 0:02:12.4]} 15. fxg4 {[%clk 0:01:44.3]} 15... Ne6
{[%clk 0:02:12.1]} 16. Kh1 {[%clk 0:01:28.6]} 16... Qg6 {[%clk 0:02:10.5]} 17.
Ng1 {[%clk 0:01:28]} 17... Rg8 {[%clk 0:02:08.9]} 18. g5 {[%clk 0:01:09.3]}
18... Nxg5 {[%clk 0:02:05.7]} 19. Bf5 {[%clk 0:01:08.9]} 19... Qh6 {[%clk
0:02:05.6]} 20. Bd2 {[%clk 0:01:01.2]} 20... Nh5 {[%clk 0:02:04.8]} 21. Nh3
{[%clk 0:00:49.9]} 21... Raf8 {[%clk 0:02:02.6]} 22. Bg4 {[%clk 0:00:47.6]}
22... Nf6 {[%clk 0:01:55.7]} 23. Bf5 {[%clk 0:00:46.2]} 23... Qh4 {[%clk
0:01:44.8]} 24. Nxg5 {[%clk 0:00:41.8]} 24... Rxg5 {[%clk 0:01:44.4]} 25. Qf3
{[%clk 0:00:41.8]} 25... Rfg8 {[%clk 0:01:42.4]} 26. Rg1 {[%clk 0:00:39.6]}
26... Rh5 {[%clk 0:01:40.4]} 27. Bh3 {[%clk 0:00:35.8]} 27... Ng4 {[%clk
0:01:29.6]} 28. Be1 {[%clk 0:00:32.1]} 28... Qg5 {[%clk 0:01:05.7]} 29. Rd1
{[%clk 0:00:29]} 29... Ne3 {[%clk 0:01:04.3]} 30. Rd2 {[%clk 0:00:28.4]} 30...
Qh6 {[%clk 0:01:03.3]} 31. Bf2 {[%clk 0:00:26.2]} 31... Ng4 {[%clk 0:01:01.8]}
32. Be1 {[%clk 0:00:24.5]} 32... Rg6 {[%clk 0:00:58.6]} 33. d4 {[%clk
0:00:24.8]} 33... Bf6 {[%clk 0:00:56.7]} 34. dxe5 {[%clk 0:00:24.5]} 34... Nxe5
{[%clk 0:00:56]} 35. Qb3 {[%clk 0:00:21.1]} 35... f3 {[%clk 0:00:53.6]} 36. Rf2
{[%clk 0:00:09.7]} 36... fxg2+ {[%clk 0:00:45.4]} 37. Rgxg2 {[%clk 0:00:10.3]}
37... Rxh3 {[%clk 0:00:45]} 38. Rxg6 {[%clk 0:00:09.5]} 38... hxg6 {[%clk
0:00:43.5]} 39. Qxb7 {[%clk 0:00:08.3]} 39... Bg7 {[%clk 0:00:39.8]} 40. Qc8+
{[%clk 0:00:08.2]} 40... Kh7 {[%clk 0:00:39.9]} 41. Bd2 {[%clk 0:00:07.5]} 41...
Qh5 {[%clk 0:00:39.3]} 42. Qxc7 {[%clk 0:00:05.3]} 42... Ng4 {[%clk 0:00:39.1]}
43. Rg2 {[%clk 0:00:04.1]} 43... Rxh2+ {[%clk 0:00:39.1]} 0-1

[Event "*** SCC Grand Prix: Titled Tuesday Blitz"]
[Site "Chess.com"]
[Date "2020.08.04"]
[Round "1"]
[White "GM_dmitrij"]
[Black "1f3_2g41-0"]
[Result "1-0"]
[WhiteElo "2882"]
[BlackElo "2439"]
[TimeControl "180+1"]
[EndTime "13:52:11 PDT"]
[Termination "GM_dmitrij won by resignation"]

1. e4 {[%clk 0:03:00.9]} 1... c5 {[%clk 0:02:59.4]} 2. Nf3 {[%clk 0:03:00.7]}
2... d6 {[%clk 0:02:58.9]} 3. d4 {[%clk 0:02:58.9]} 3... cxd4 {[%clk 0:02:59.8]}
4. Nxd4 {[%clk 0:02:59.1]} 4... Nf6 {[%clk 0:03:00.3]} 5. Nc3 {[%clk 0:02:59.5]}
5... a6 {[%clk 0:03:00.5]} 6. Be2 {[%clk 0:02:59.7]} 6... e5 {[%clk 0:03:00.4]}
7. Nb3 {[%clk 0:02:59.6]} 7... Be7 {[%clk 0:03:01.1]} 8. Be3 {[%clk 0:02:59.8]}
8... O-O {[%clk 0:03:01.8]} 9. Qd3 {[%clk 0:02:59.7]} 9... Be6 {[%clk
0:03:02.4]} 10. Nd5 {[%clk 0:02:59.2]} 10... Bxd5 {[%clk 0:02:53.3]} 11. exd5
{[%clk 0:03:00.1]} 11... Nbd7 {[%clk 0:02:52.8]} 12. O-O {[%clk 0:02:59.8]}
12... b5 {[%clk 0:02:52.6]} 13. a4 {[%clk 0:02:58.5]} 13... e4 {[%clk
0:02:48.5]} 14. Qd4 {[%clk 0:02:53.9]} 14... bxa4 {[%clk 0:02:41.5]} 15. Rxa4
{[%clk 0:02:54.8]} 15... Nc5 {[%clk 0:02:29.9]} 16. Ra3 {[%clk 0:02:44.1]} 16...
Rc8 {[%clk 0:02:20.2]} 17. Na5 {[%clk 0:02:42.7]} 17... Qc7 {[%clk 0:01:49.1]}
18. b4 {[%clk 0:02:37.9]} 18... Ncd7 {[%clk 0:01:48.7]} 19. c4 {[%clk
0:02:36.8]} 19... Rb8 {[%clk 0:01:44]} 20. Nc6 {[%clk 0:02:36.1]} 20... Rbe8
{[%clk 0:01:43.5]} 21. Rxa6 {[%clk 0:02:35.4]} 21... Nb8 {[%clk 0:01:35.6]} 22.
Ra7 {[%clk 0:02:26.5]} 22... Nxc6 {[%clk 0:01:30]} 23. Rxc7 {[%clk 0:02:26.7]}
23... Nxd4 {[%clk 0:01:29.6]} 24. Bxd4 {[%clk 0:02:27.6]} 24... Bd8 {[%clk
0:01:16.5]} 25. Rc6 {[%clk 0:02:27.7]} 25... Be7 {[%clk 0:01:16.7]} 26. g4
{[%clk 0:02:08.3]} 26... Rb8 {[%clk 0:01:12.6]} 27. g5 {[%clk 0:02:03.9]} 27...
Nd7 {[%clk 0:01:12.2]} 28. Rc7 {[%clk 0:02:04]} 28... Rfd8 {[%clk 0:01:11.5]}
29. Bg4 {[%clk 0:02:03.4]} 29... Rxb4 {[%clk 0:01:07.3]} 30. Bxd7 {[%clk
0:02:02.3]} 30... Bxg5 {[%clk 0:01:05.8]} 31. Be3 {[%clk 0:01:50]} 31... Bf6
{[%clk 0:01:01.7]} 32. Bb5 {[%clk 0:01:48.7]} 32... Be5 {[%clk 0:01:00.9]} 33.
f4 {[%clk 0:01:31.7]} 33... exf3 {[%clk 0:00:59.1]} 34. Rxf3 {[%clk 0:01:31.7]}
34... Rb2 {[%clk 0:00:59.3]} 35. Rf2 {[%clk 0:01:28]} 35... Rb3 {[%clk
0:00:56.8]} 36. Ba7 {[%clk 0:01:26]} 36... f6 {[%clk 0:00:52.2]} 37. Ra2 {[%clk
0:01:08.6]} 37... h5 {[%clk 0:00:49.6]} 38. Bf2 {[%clk 0:01:08.2]} 38... Rh3
{[%clk 0:00:42.5]} 39. Raa7 {[%clk 0:01:07.9]} 39... f5 {[%clk 0:00:35.8]} 40.
Bd7 {[%clk 0:01:01.6]} 40... Rf8 {[%clk 0:00:26.9]} 41. Be6+ {[%clk 0:00:59.8]}
41... Kh8 {[%clk 0:00:27]} 42. Bg3 {[%clk 0:00:49.5]} 42... f4 {[%clk
0:00:22.9]} 43. Bxh3 {[%clk 0:00:47.2]} 43... fxg3 {[%clk 0:00:21.6]} 44. hxg3
{[%clk 0:00:48.1]} 44... Bd4+ {[%clk 0:00:21.2]} 45. Kh1 {[%clk 0:00:46.7]}
45... Bxa7 {[%clk 0:00:20.7]} 46. Rxa7 {[%clk 0:00:46.1]} 46... Rf3 {[%clk
0:00:21.4]} 47. Kh2 {[%clk 0:00:42.1]} 47... Rc3 {[%clk 0:00:21.7]} 48. Bf5
{[%clk 0:00:39.2]} 48... g6 {[%clk 0:00:19.8]} 49. Bxg6 {[%clk 0:00:39.3]} 49...
Rxc4 {[%clk 0:00:19.9]} 50. Bxh5 {[%clk 0:00:38.3]} 50... Rd4 {[%clk 0:00:20.5]}
51. Bf3 {[%clk 0:00:36.6]} 51... Rd3 {[%clk 0:00:20.2]} 52. Kg2 {[%clk 0:00:36]}
52... Kg8 {[%clk 0:00:20.4]} 53. Rd7 {[%clk 0:00:35.7]} 53... Rd2+ {[%clk
0:00:20.7]} 54. Kh3 {[%clk 0:00:36.1]} 1-0

[Event "*** SCC Grand Prix: Titled Tuesday Blitz"]
[Site "Chess.com"]
[Date "2020.08.04"]
[Round "1"]
[White "rududuyk"]
[Black "RitvarsReimanis"]
[Result "0-1"]
[WhiteElo "2079"]
[BlackElo "2511"]
[TimeControl "180+1"]
[EndTime "13:52:16 PDT"]
[Termination "RitvarsReimanis won by checkmate"]

1. e4 {[%clk 0:03:00.9]} 1... e5 {[%clk 0:02:59.5]} 2. Nf3 {[%clk 0:03:00.4]}
2... Nc6 {[%clk 0:03:00]} 3. Nc3 {[%clk 0:03:00.4]} 3... Nf6 {[%clk 0:02:56.7]}
4. d4 {[%clk 0:02:59.8]} 4... exd4 {[%clk 0:02:56]} 5. Nd5 {[%clk 0:02:59.4]}
5... Be7 {[%clk 0:02:52.5]} 6. Nxd4 {[%clk 0:02:56.9]} 6... Nxe4 {[%clk
0:02:41.6]} 7. Nf5 {[%clk 0:02:12.3]} 7... Bf6 {[%clk 0:02:20]} 8. Bd3 {[%clk
0:02:01.8]} 8... Nd6 {[%clk 0:02:14.8]} 9. Nxd6+ {[%clk 0:01:50.2]} 9... cxd6
{[%clk 0:02:13.5]} 10. Qe2+ {[%clk 0:01:48.6]} 10... Kf8 {[%clk 0:01:57.6]} 11.
O-O {[%clk 0:01:37]} 11... b6 {[%clk 0:01:57.1]} 12. Re1 {[%clk 0:01:19.9]}
12... Bb7 {[%clk 0:01:54.3]} 13. c3 {[%clk 0:00:57.9]} 13... Ne5 {[%clk
0:01:53.2]} 14. Ne3 {[%clk 0:00:48.3]} 14... Qc7 {[%clk 0:01:37.1]} 15. Nf5
{[%clk 0:00:38.3]} 15... Qc6 {[%clk 0:01:30]} 16. f3 {[%clk 0:00:35.6]} 16...
Re8 {[%clk 0:01:16.6]} 17. Bf4 {[%clk 0:00:25.2]} 17... g5 {[%clk 0:01:03.6]}
18. Bg3 {[%clk 0:00:20.4]} 18... h5 {[%clk 0:01:03.9]} 19. Be4 {[%clk 0:00:16]}
19... d5 {[%clk 0:00:41.4]} 20. Nd4 {[%clk 0:00:13.9]} 20... Qc4 {[%clk
0:00:28.2]} 21. Qxc4 {[%clk 0:00:08.6]} 21... Nxc4 {[%clk 0:00:29.1]} 22. Bf5
{[%clk 0:00:06.9]} 22... Re6 {[%clk 0:00:21.2]} 23. Bxe6 {[%clk 0:00:06.2]}
23... dxe6 {[%clk 0:00:22.1]} 24. b3 {[%clk 0:00:04.9]} 24... Na5 {[%clk
0:00:15.4]} 25. Be5 {[%clk 0:00:05.4]} 25... Kg7 {[%clk 0:00:15.2]} 26. Bxf6+
{[%clk 0:00:05.2]} 26... Kxf6 {[%clk 0:00:16.1]} 27. Re2 {[%clk 0:00:05.3]}
27... Rc8 {[%clk 0:00:16]} 28. Re3 {[%clk 0:00:05.2]} 28... h4 {[%clk
0:00:14.1]} 29. Rae1 {[%clk 0:00:05]} 29... Ba6 {[%clk 0:00:13]} 30. Kf2 {[%clk
0:00:04.8]} 30... Nb7 {[%clk 0:00:13.5]} 31. g3 {[%clk 0:00:05]} 31... hxg3+
{[%clk 0:00:13.2]} 32. hxg3 {[%clk 0:00:05.9]} 32... Nd6 {[%clk 0:00:13.7]} 33.
f4 {[%clk 0:00:06]} 33... gxf4 {[%clk 0:00:11.9]} 34. gxf4 {[%clk 0:00:06.9]}
34... Ne4+ {[%clk 0:00:11.9]} 35. Kf3 {[%clk 0:00:07.3]} 35... Nd2+ {[%clk
0:00:10.5]} 36. Kg2 {[%clk 0:00:07]} 36... Ne4 {[%clk 0:00:11.4]} 37. Kf3 {[%clk
0:00:06.9]} 37... Rg8 {[%clk 0:00:10.5]} 38. Rh1 {[%clk 0:00:06.5]} 38... Rg3#
{[%clk 0:00:09]} 0-1